bitfinex/quotes_ETHUSD_20250110
["timestamp","ask_amount","ask_price","bid_price","bid_amount"]
[1736537905758,4.88,3290.5,3289.9,3.82842]
[1736537906053,4.88,3290.5,3290.0,3.03942]
[1736537907335,4.88,3290.5,3289.7,0.61906804]
[1736537907542,4.88,3290.5,3290.0,3.03951]
[1736537908158,4.88,3290.5,3289.8,3.03969]
[1736537908354,4.88,3290.5,3290.0,3.03944]
[1736537908570,4.88,3290.5,3289.7,3.65878804]
[1736537908712,0.7642,3290.4,3289.7,0.61906804]
[1736537909058,0.7642,3290.4,3289.9,3.03952]
[1736537911259,0.7642,3290.4,3290.0,3.0395]
[1736537911616,0.7642,3290.4,3289.8,3.03962]
[1736537911810,0.7642,3290.4,3289.9,3.03959]
[1736537912015,0.7642,3290.4,3290.0,3.0395]
[1736537912278,0.7642,3290.4,3289.7,0.61906804]
[1736537912563,0.7937,3291.2,3289.8,0.85489082]
[1736537912716,0.7937,3291.2,3290.7,3.03878]
[1736537913330,0.7937,3291.2,3290.5,0.03038678]
[1736537913331,0.7937,3291.2,3290.8,3.03874]
[1736537913558,4.88,3291.3,3291.0,3.03857]
[1736537913773,0.8114,3291.5,3291.1,3.03843]
[1736537913943,0.8114,3291.8,3291.0,0.81]
[1736537914263,3.8114,3291.8,3291.0,0.81]
[1736537914461,0.8114,3291.8,3291.1,3.03849]
[1736537914763,0.8114,3291.8,3291.3,3.03823]
[1736537915431,0.8114,3291.8,3291.4,3.06854913]
[1736537915646,0.8114,3291.8,3291.4,3.03817]
[1736537916656,0.8114,3291.8,3291.2,3.727074]
[1736537917416,0.8114,3291.8,3291.1,0.241]
[1736537917667,0.8114,3291.8,3291.2,3.64025536]
[1736537918162,0.8114,3291.8,3291.2,0.60189536]
[1736537918332,3.8114,3291.8,3291.1,0.241]
[1736537918544,8.71114,3291.6,3290.9,0.62313086]
[1736537918740,8.71114,3291.6,3290.7,3.03885]
[1736537919050,5.6731,3291.3,3290.8,0.22662518]
[1736537919233,5.6731,3291.1,3290.8,0.22662518]
[1736537919432,3.0,3291.0,3290.8,0.22662518]
[1736537919632,0.7715,3290.9,3290.8,0.22662518]
[1736537920163,7.36768,3290.9,3290.8,0.22662518]
[1736537920361,3.03898,3290.6,3289.9,0.241]
[1736537920566,3.81056,3290.5,3289.8,0.6213663]
[1736537920795,3.81056,3290.5,3289.6,3.03987]
[1736537921080,3.81056,3290.5,3289.6,3.367957]
[1736537921278,3.81056,3290.5,3289.6,3.96279415]
[1736537921962,0.7715,3290.5,3289.7,3.03978]
[1736537922565,0.7715,3290.5,3289.6,0.92292415]
[1736537922769,0.7715,3290.5,3289.8,3.03967]
[1736537923085,0.7715,3290.5,3289.6,0.59483715]
[1736537923237,0.7715,3290.5,3289.8,3.03966]
[1736537925040,5.6515,3290.5,3289.8,3.03966]
[1736537925442,5.6515,3290.5,3289.6,3.63468715]
[1736537925757,5.6515,3290.5,3289.7,3.03978]
[1736537925940,5.6515,3290.5,3289.8,0.03039458]
[1736537926210,4.88,3290.5,3289.9,0.7996]
[1736537926338,0.8071,3290.8,3290.0,0.03038991]
[1736537926539,3.0,3291.1,3290.5,3.03899]
[1736537926756,3.0,3291.1,3290.6,3.342799]
[1736537926986,3.0,3291.1,3290.7,3.03884]
[1736537927345,3.0,3291.1,3290.6,0.303899]
[1736537927346,5.6389,3291.2,3290.8,3.03877]
[1736537927762,5.6389,3291.2,3290.6,0.303899]
[1736537927983,5.6389,3291.2,3290.6,3.03895]
[1736537931491,5.6389,3291.2,3290.7,3.03884]
[1736537932477,5.6389,3291.2,3290.8,0.03038499]
[1736537932677,2.53539066,3292.3,3290.8,0.03038499]
[1736537932678,0.8168,3291.5,3290.8,0.03038499]
[1736537932880,0.8168,3292.1,3291.3,3.03823]
[1736537933195,0.8168,3292.1,3291.4,3.342033]
[1736537935610,0.8168,3292.1,3291.4,0.303823]
[1736537936109,0.8168,3292.1,3291.3,3.64590001]
[1736537936495,0.8168,3292.1,3291.4,0.03037907]
[1736537937013,5.6968,3292.1,3291.4,0.03037907]
[1736537937168,0.8168,3292.1,3291.7,3.0379]
[1736537937369,0.8168,3292.1,3291.8,3.03784]
[1736537938393,0.8168,3292.1,3291.8,3.341624]
[1736537939284,0.8168,3292.1,3291.6,3.03801]
[1736537939886,0.8168,3292.1,3291.7,0.03037703]
[1736537940081,0.8168,3292.1,3291.3,0.84860001]
[1736537940310,0.8168,3292.1,3291.6,3.03795]
[1736537940511,0.8168,3292.1,3291.4,0.03037704]
[1736537940678,0.7848,3292.4,3291.7,3.03793]
[1736537940879,0.7848,3292.4,3291.5,3.03805]
[1736537941215,0.7848,3292.1,3291.4,3.03821]
[1736537943088,3.0,3292.0,3291.4,3.03821]
[1736537944315,3.0,3292.0,3291.5,3.0381]
[1736537944533,3.0,3292.0,3291.3,0.03037899]
[1736537944729,4.88,3292.1,3292.0,3.03766]
[1736537944876,4.88,3292.1,3292.0,3.341426]
[1736537945918,4.88,3292.1,3292.0,3.582426]
[1736537946119,4.88,3292.1,3292.0,4.19295467]
[1736537946819,0.7796,3292.7,3292.0,1.15529467]
[1736537946978,0.7796,3292.7,3292.2,3.03739]
[1736537947174,0.7796,3292.7,3292.0,0.85152867]
[1736537947381,0.7796,3292.7,3292.3,3.03736]
[1736537947801,0.7796,3292.7,3292.1,0.7754]
[1736537948003,0.7796,3292.7,3292.4,3.03729]
[1736537948393,0.7796,3292.7,3292.5,3.03719]
[1736537950414,0.7796,3292.7,3292.0,0.85152867]
[1736537950634,0.7796,3292.7,3291.7,0.7779]
[1736537950878,3.03729,3292.4,3291.7,0.241]
[1736537950997,0.7532,3292.2,3291.7,0.241]
[1736537951530,0.8279,3292.0,3291.4,0.61971367]
[1736537952302,0.8279,3292.0,3291.0,3.03854]
[1736537952827,0.8279,3292.0,3291.1,3.03849]
[1736537953013,0.8279,3292.0,3291.0,0.61819298]
[1736537953224,0.8279,3292.0,3291.0,3.65670298]
[1736537953544,0.8279,3292.0,3291.0,4.04647328]
[1736537953747,0.8279,3292.0,3291.1,3.0384]
[1736537954046,0.8279,3292.0,3291.2,3.03839]
[1736537954348,0.8279,3292.0,3291.1,0.03038152]
[1736537954635,0.8279,3292.0,3291.2,0.8056]
[1736537954790,0.8279,3292.0,3291.3,0.384404]
[1736537955583,0.8279,3292.0,3291.5,3.03811]
[1736537956216,5.6472,3292.4,3292.0,3.03759]
[1736537956435,0.7672,3292.4,3292.2,3.03744]
[1736537956598,0.773,3293.0,3292.2,3.03744]
[1736537956800,0.773,3293.0,3292.3,3.03732]
[1736537957003,0.773,3293.0,3292.1,3.03757]
[1736537957333,0.773,3293.0,3292.2,0.607523]
[1736537957629,0.773,3292.9,3292.1,3.03757]
[1736537957945,0.773,3292.9,3291.9,3.03775]
[1736537958230,0.773,3292.9,3292.0,3.03766]
[1736537959039,3.80526741,3292.9,3292.0,3.03766]
[1736537960233,0.76837741,3292.9,3292.1,3.03756]
[1736537961006,4.88,3292.8,3292.1,3.03756]
[1736537961936,0.7703,3292.7,3292.1,3.03756]
[1736537965153,0.7703,3292.7,3292.1,3.40265521]
[1736537965312,0.7703,3292.7,3292.2,3.03746]
[1736537966756,0.7703,3292.7,3292.1,0.36509521]
[1736537966962,0.7911,3293.2,3292.3,0.03037307]
[1736537967260,0.7911,3293.2,3292.2,3.03748]
[1736537967443,0.7911,3293.2,3293.0,3.03673]
[1736537969366,4.88,3293.3,3293.0,3.03673]
[1736537969549,0.8039,3293.5,3293.1,0.03036554]
[1736537969757,5.6839,3293.8,3293.1,0.03036554]
[1736537969961,0.8039,3293.8,3293.6,3.03617]
[1736537970141,4.88,3294.4,3293.7,3.03609]
[1736537970325,0.8039,3294.3,3293.7,3.03609]
[1736537970866,0.8039,3294.3,3293.6,0.303617]
[1736537971227,0.8039,3294.3,3293.6,3.03617]
[1736537971973,0.8039,3294.3,3293.4,3.65897893]
[1736537972272,0.7847,3294.1,3293.2,0.61542296]
[1736537972667,0.7847,3294.1,3293.3,3.03638]
[1736537974868,0.7847,3294.1,3293.2,0.61542296]
[1736537975026,0.7847,3294.1,3293.2,4.02015251]
[1736537975527,0.7847,3294.1,3293.3,3.03644]
[1736537975868,4.88,3294.0,3293.3,3.03644]
[1736537977446,4.88,3294.0,3293.5,3.03627]
[1736537977650,0.03076624,3293.9,3293.7,3.03607]
[1736537977845,0.03076624,3293.9,3293.5,3.03625]
[1736537978052,0.03076624,3293.9,3293.2,0.98366251]
[1736537978276,0.8163,3293.8,3293.2,0.98366251]
[1736537978589,0.03328433,3293.7,3293.4,3.03637]
[1736537978893,0.03328433,3293.7,3293.2,4.02020251]
[1736537979059,0.03328433,3293.7,3293.3,3.06680162]
[1736537979060,0.02851666,3293.7,3293.3,3.06680162]
[1736537979266,0.8163,3293.8,3293.4,3.03637]
[1736537979587,0.8163,3293.8,3293.5,3.03626]
[1736537980589,0.8163,3293.8,3293.3,3.03638]
[1736537980760,0.8163,3293.8,3293.4,3.0363]
[1736537981090,0.8163,3293.8,3293.5,3.03627]
[1736537981296,4.88,3294.0,3293.7,3.03608]
[1736537981789,4.88,3294.0,3293.3,0.70566625]
[1736537981961,4.88,3294.0,3293.4,3.0363]
[1736537982177,4.88,3294.0,3293.6,3.03611]
[1736537983707,4.88,3294.0,3293.2,0.61542296]
[1736537983990,0.8061,3293.9,3293.1,0.24]
[1736537984168,2.53539066,3293.9,3293.0,3.03666]
[1736537984368,2.53539066,3293.9,3292.8,0.9991]
[1736537984369,0.8061,3293.8,3293.1,3.03663]
[1736537987069,0.8061,3293.8,3293.2,3.03653]
[1736537987474,0.8061,3293.8,3293.0,0.6024294]
[1736537987805,0.8061,3293.8,3293.1,3.03661]
[1736537987962,5.6861,3293.8,3293.1,3.03661]
[1736537989889,5.6861,3293.8,3293.0,0.6024294]
[1736537990201,3.84871,3293.7,3292.8,0.24]
[1736537990401,0.8126,3293.6,3292.8,3.88824672]
[1736537992382,0.8126,3293.6,3292.9,3.03683]
[1736537993123,0.8126,3293.6,3293.1,0.7989]
[1736537993322,4.88,3293.8,3293.2,0.03036065]
[1736537993497,4.88,3293.8,3293.4,3.0363]
[1736537993823,0.822,3293.9,3293.5,3.33983]
[1736537994328,0.822,3293.9,3293.5,0.30363]
[1736537994879,0.822,3293.9,3293.4,3.03635]
[1736537995489,0.822,3293.9,3293.4,3.63754058]
[1736537995705,0.822,3293.9,3293.5,3.03627]
[1736537996935,0.822,3293.9,3293.6,0.22724832]
[1736537998339,0.822,3293.9,3293.5,3.03627]
[1736537998630,0.822,3293.9,3293.6,0.36374606]
[1736537999723,0.822,3293.9,3293.7,0.2275682]
[1736538001121,0.822,3293.9,3293.6,3.39992606]
[1736538001327,0.822,3293.9,3293.1,0.7989]
[1736538001490,8.73794,3293.9,3293.0,3.27666]
[1736538001687,5.702,3293.9,3293.2,3.03655]
[1736538002098,5.702,3293.9,3293.3,3.03646]
[1736538002830,5.702,3293.9,3293.4,3.03637]
[1736538002988,5.702,3293.9,3293.4,3.340007]
[1736538003888,5.702,3293.9,3293.5,0.22762095]
[1736538005188,5.702,3293.9,3293.2,3.03647]
[1736538005825,5.702,3293.9,3293.1,3.27664]
[1736538006018,5.702,3293.9,3293.2,3.03654]
[1736538006536,5.702,3293.9,3293.3,0.2276278]
[1736538007634,5.702,3293.9,3293.4,0.2276278]
[1736538009135,5.702,3293.9,3293.3,3.03641]
[1736538009338,5.702,3293.9,3293.3,3.364051]
[1736538009542,5.702,3293.9,3293.3,0.35800197]
[1736538009742,4.88,3293.9,3293.4,0.8088]
[1736538009951,0.0075,3295.0,3294.1,3.03573]
[1736538009952,4.88,3294.5,3294.1,3.03573]
[1736538010245,0.7855,3294.6,3294.3,3.03554]
[1736538010391,0.8226,3294.9,3294.4,0.03035283]
[1736538010736,0.8226,3295.2,3294.5,0.8018]
[1736538010898,0.8226,3295.7,3294.7,3.03517]
[1736538011094,0.8226,3295.7,3294.6,0.38675428]
[1736538011294,0.8226,3295.7,3294.8,3.035]
[1736538011540,0.8226,3295.7,3294.6,0.38675428]
[1736538011725,3.03472,3295.2,3294.5,0.22734881]
[1736538011928,3.84013,3295.0,3294.5,0.22734881]
[1736538012110,0.8052,3295.0,3294.5,0.22734881]
[1736538012316,8.7201,3295.0,3294.2,0.84745702]
[1736538012735,3.035,3294.9,3294.2,0.84745702]
[1736538013131,5.6852,3295.0,3294.2,0.24]
[1736538013330,3.03511,3294.8,3294.2,0.24]
[1736538013639,0.41281445,3294.9,3294.2,0.24]
[1736538014927,0.41281445,3294.9,3294.2,3.27563]
[1736538015152,5.6852,3295.0,3294.2,0.24]
[1736538016338,8.72012,3295.0,3294.2,0.24]
[1736538017653,3.035,3294.9,3294.2,0.24]
[1736538017852,4.8875,3294.5,3293.8,2.37087565]
[1736538018024,0.806,3294.3,3293.8,2.37087565]
[1736538018724,0.5,3294.0,3293.8,5.94757021]
[1736538019124,0.5,3294.0,3293.8,2.91158021]
[1736538019354,0.5,3294.0,3293.8,2.37087565]
[1736538019562,0.5,3294.0,3293.8,5.40686565]
[1736538020150,0.5,3294.0,3293.9,3.03591]
[1736538020945,0.5,3294.0,3293.9,3.82831]
[1736538021332,0.5,3294.0,3293.9,3.85866463]
[1736538021528,0.5,3294.0,3293.9,4.70848596]
[1736538024264,0.5,3294.0,3293.9,4.67813133]
[1736538024735,0.5,3294.0,3293.9,4.70848592]
[1736538025319,0.5,3294.0,3293.9,4.67813133]
[1736538027576,0.5,3294.0,3293.9,3.5027773]
[1736538028421,0.5,3294.0,3293.9,0.4668673]
[1736538029156,0.5,3294.0,3293.9,3.5027773]
[1736538029565,0.5,3294.0,3293.9,3.27591]
[1736538030725,0.5,3294.0,3293.9,3.03591]
[1736538032126,0.54870388,3294.0,3293.9,3.03591]
[1736538032330,0.54870388,3294.0,3293.8,2.61087565]
[1736538032331,0.54870388,3294.0,3293.8,2.37087565]
[1736538032531,0.54870388,3294.0,3293.9,3.03591]
[1736538032829,0.5,3294.0,3293.9,3.03591]
[1736538033027,0.5,3294.0,3293.9,3.60058857]
[1736538033268,0.54870301,3294.0,3293.9,3.60058857]
[1736538034175,0.54870301,3294.0,3293.9,3.82743131]
[1736538034582,0.54870301,3294.0,3293.9,4.65338733]
[1736538034781,1.86e-06,3294.0,3293.9,4.65338733]
[1736538035073,0.7664,3295.1,3294.9,3.03495]
[1736538035435,0.7664,3295.5,3294.9,3.03495]
[1736538035939,0.7664,3295.5,3295.2,3.03462]
[1736538036335,0.7794,3295.8,3295.2,0.303462]
[1736538036578,0.7794,3296.1,3295.7,3.03425]
[1736538037514,0.7794,3296.1,3295.8,3.03415]
[1736538037645,0.7794,3296.1,3295.9,3.03406]
[1736538037844,0.8058,3296.5,3296.2,3.03379]
[1736538038388,0.8058,3296.5,3295.9,0.03033607]
[1736538038389,4.88,3296.9,3296.3,3.03368]
[1736538038591,0.8058,3296.8,3296.3,3.03368]
[1736538038883,0.8058,3296.8,3296.4,3.03359]
[1736538039846,0.8058,3296.8,3296.0,3.03396]
[1736538039847,0.8058,3297.2,3296.5,0.27033363]
[1736538040463,0.8058,3297.2,3296.7,3.03332]
[1736538040660,0.8058,3297.2,3296.5,3.30382363]
[1736538040988,0.8058,3297.2,3296.5,0.24]
[1736538041189,3.34119066,3297.2,3296.5,0.24]
[1736538041662,6.37414066,3297.2,3296.5,0.24]
[1736538042069,0.8124,3296.9,3295.8,3.03408]
[1736538042296,0.8124,3296.7,3295.9,0.24]
[1736538042503,0.385315,3296.6,3295.9,0.24]
[1736538042743,0.42941629,3296.6,3295.9,0.24]
[1736538043215,3.46284629,3296.6,3295.9,0.24]
[1736538043371,0.42941629,3296.6,3295.9,0.24]
[1736538043996,0.04410129,3296.6,3295.9,0.24]
[1736538047213,0.8049,3296.5,3295.6,3.03432]
[1736538047511,7.95740527,3296.4,3295.7,0.24]
[1736538048070,3.83777,3296.3,3295.5,0.24]
[1736538048269,0.7965,3296.2,3295.5,0.24]
[1736538048466,0.0075,3296.1,3294.9,0.801]
[1736538048683,3.03435,3295.6,3294.6,3.03521]
[1736538049021,0.83936584,3295.5,3294.5,0.24]
[1736538049224,1.22673742,3295.5,3294.7,3.03516]
[1736538049428,0.83936584,3295.5,3294.8,3.03506]
[1736538053813,0.83936584,3295.5,3294.6,3.27526]
[1736538054138,0.83936584,3295.5,3294.7,3.03517]
[1736538055448,8.75380584,3295.5,3294.6,0.24]
[1736538055648,8.75380584,3295.5,3294.3,3.03553]
[1736538055649,0.8122,3295.3,3294.3,3.03553]
[1736538055944,5.30384605,3295.2,3294.4,3.27544]
[1736538056125,4.92262605,3295.2,3294.4,3.27544]
[1736538056681,4.92262605,3295.2,3294.2,3.03562]
[1736538056871,4.92262605,3295.2,3294.3,0.24]
[1736538056872,0.7712,3295.1,3294.3,0.24]
[1736538057246,0.04208555,3295.0,3294.3,0.24]
[1736538058084,0.04208555,3295.0,3294.5,3.03535]
[1736538058257,0.04208555,3295.0,3294.3,0.65767333]
[1736538058258,0.04208555,3295.0,3294.3,0.62732045]
[1736538058456,0.04208555,3295.0,3294.4,3.03545]
[1736538058665,0.04208555,3295.0,3294.3,0.24]
[1736538058875,0.04208555,3295.0,3294.9,3.03499]
[1736538059980,0.7874,3295.4,3295.0,3.03488]
[1736538060578,0.7874,3295.4,3294.8,3.03507]
[1736538060885,0.7874,3295.4,3294.9,0.24]
[1736538062166,0.7874,3295.4,3294.9,3.27498]
[1736538062569,0.04197924,3295.3,3294.9,3.27498]
[1736538063092,0.04197924,3295.3,3295.0,3.03488]
[1736538063477,0.04197924,3295.3,3294.9,0.24]
[1736538065300,0.04197924,3295.3,3295.0,3.0349]
[1736538067063,0.7874,3295.4,3295.0,3.0349]
[1736538067064,0.7874,3295.4,3295.1,3.0348]
[1736538067400,0.04220436,3295.3,3295.0,0.03034583]
[1736538067604,0.7559,3295.7,3295.0,3.03486]
[1736538067806,0.7559,3295.7,3295.3,3.03461]
[1736538067963,0.04242936,3295.6,3294.9,0.24]
[1736538068300,0.7559,3295.7,3294.9,3.27495]
[1736538068606,0.04242936,3295.6,3294.9,3.27495]
[1736538070764,0.8152,3295.5,3294.9,3.27495]
[1736538070970,0.04227936,3295.4,3294.9,3.27495]
[1736538071161,0.04227936,3295.4,3294.7,3.27412]
[1736538071376,0.04227936,3295.4,3294.8,0.387053]
[1736538071637,0.04227936,3295.4,3294.7,3.27412]
[1736538071853,4.92227936,3295.4,3294.7,3.27412]
[1736538072422,0.8282,3295.3,3294.7,3.27412]
[1736538072584,0.04209914,3295.2,3294.7,3.27412]
[1736538075495,0.04209914,3295.2,3294.7,0.239]
[1736538075699,0.04209914,3295.2,3294.5,0.239]
[1736538075700,0.7938,3295.1,3294.5,0.239]
[1736538076113,0.04195037,3295.0,3294.5,0.239]
[1736538076522,0.04195037,3295.0,3294.7,3.03516]
[1736538077093,0.04195037,3295.0,3294.9,3.03499]
[1736538077288,0.04195037,3295.0,3294.9,3.338489]
[1736538077511,0.81,3295.4,3295.1,3.0348]
[1736538077907,0.81,3295.4,3294.9,3.338459]
[1736538078102,0.81,3295.4,3294.9,3.03496]
[1736538078308,0.81,3295.4,3294.7,3.03514]
[1736538078514,0.81,3295.4,3295.0,0.22691403]
[1736538079641,0.81,3295.4,3294.8,3.03505]
[1736538079839,0.81,3295.4,3294.6,3.03521]
[1736538080133,0.81,3295.4,3294.6,0.630963]
[1736538080347,0.81,3295.4,3294.8,3.03508]
[1736538080642,0.81,3295.4,3294.9,3.03497]
[1736538082241,0.81,3295.4,3295.0,0.22701343]
[1736538082840,0.81,3295.4,3295.1,3.0348]
[1736538083005,0.81,3295.4,3295.1,3.36098134]
[1736538083202,4.88,3295.7,3295.1,0.32618134]
[1736538083401,0.7756,3295.7,3295.1,0.22701343]
[1736538083944,0.7756,3295.7,3295.4,3.03449]
[1736538084242,0.03908264,3295.6,3295.4,3.03449]
[1736538085043,0.03908264,3295.6,3295.5,3.03444]
[1736538085407,0.7756,3296.0,3295.5,3.03444]
[1736538085729,0.03936192,3295.9,3295.6,0.303444]
[1736538086207,0.03936192,3295.9,3295.0,1.66632729]
[1736538086462,0.7756,3295.8,3295.0,3.88548729]
[1736538086792,0.03984017,3295.7,3295.0,3.88548729]
[1736538087001,0.7756,3295.6,3295.0,0.85062729]
[1736538087207,0.7756,3295.6,3295.0,0.239]
[1736538087364,0.03960424,3295.5,3295.0,0.239]
[1736538088322,0.03960424,3295.5,3295.0,1.08504745]
[1736538088528,0.03960424,3295.5,3295.1,3.03472]
[1736538088656,0.03960424,3295.5,3295.0,3.30418745]
[1736538088855,0.03960424,3295.5,3295.0,3.27384]
[1736538089511,0.03960424,3295.5,3295.0,0.239]
[1736538091300,0.03960424,3295.5,3295.4,3.03453]
[1736538091465,4.88,3295.8,3295.4,0.303453]
[1736538091660,0.03765838,3295.7,3295.1,3.26152757]
[1736538091864,0.7962,3295.6,3295.1,3.26152757]
[1736538092094,0.03790066,3295.5,3295.1,3.26152757]
[1736538092667,0.03790066,3295.5,3295.2,3.0347]
[1736538092894,0.03790066,3295.5,3295.3,3.03462]
[1736538093066,0.03790066,3295.5,3295.1,3.03476]
[1736538093681,0.03790066,3295.5,3295.0,0.239]
[1736538094284,0.7945,3295.4,3295.0,0.239]
[1736538094689,0.03796988,3295.3,3295.0,0.239]
[1736538096388,0.03796988,3295.3,3294.8,0.22685485]
[1736538096586,0.7997,3295.2,3294.8,0.22685485]
[1736538096791,0.7997,3295.0,3294.8,0.22685485]
[1736538097024,3.03796232,3294.9,3294.8,0.22685485]
[1736538097236,3.87875232,3294.9,3294.8,0.22685485]
[1736538097527,0.84376232,3294.9,3294.8,0.22685485]
[1736538097702,4.8875,3294.8,3294.3,2.5421198]
[1736538098093,0.03765306,3294.7,3294.3,2.5421198]
[1736538098530,4.88,3294.8,3294.3,2.5421198]
[1736538098736,0.03721457,3294.6,3294.3,2.5421198]
[1736538098904,0.03728962,3294.7,3294.3,2.5421198]
[1736538099111,0.03713952,3294.5,3294.3,2.5421198]
[1736538099310,4.88,3294.8,3294.3,2.5421198]
[1736538099511,0.03706447,3294.4,3294.3,2.5421198]
[1736538099733,4.88,3294.8,3294.3,2.5421198]
[1736538099936,0.03706447,3294.4,3294.3,2.5421198]
[1736538100131,4.88,3294.8,3294.3,2.5421198]
[1736538100321,0.03706447,3294.4,3294.3,2.5421198]
[1736538100494,4.88,3294.8,3294.3,2.5421198]
[1736538100698,0.03706447,3294.4,3294.3,2.5421198]
[1736538101331,4.88,3294.8,3294.3,2.5421198]
[1736538101566,0.03706447,3294.4,3294.3,2.5421198]
[1736538101775,4.88,3294.8,3294.3,2.5421198]
[1736538101930,0.03706447,3294.4,3294.3,2.5421198]
[1736538102438,4.88,3294.8,3294.3,2.5421198]
[1736538102645,0.03728962,3294.7,3294.5,3.03536]
[1736538102966,4.88,3294.8,3294.5,3.03536]
[1736538103165,4.88,3294.8,3294.3,2.5421198]
[1736538103166,0.03721457,3294.6,3294.3,2.5421198]
[1736538103326,4.88,3294.8,3294.3,2.79633178]
[1736538103526,0.03713952,3294.5,3294.4,3.03545]
[1736538103725,4.88,3294.8,3294.5,3.03531]
[1736538106275,4.88,3294.8,3294.6,3.03526]
[1736538106435,4.88,3294.8,3294.4,3.2744]
[1736538107648,0.03681391,3294.7,3294.4,3.88147318]
[1736538107851,4.88,3294.8,3294.4,3.88147318]
[1736538108052,0.03694656,3294.6,3294.4,3.2744]
[1736538108245,4.88,3294.8,3294.4,3.2744]
[1736538108454,0.03675208,3294.5,3294.4,3.2744]
[1736538108778,4.88,3294.8,3294.4,0.239]
[1736538109070,0.03690216,3294.7,3294.4,0.46553702]
[1736538109232,4.88,3294.8,3294.4,0.46553702]
[1736538109437,0.03655449,3294.6,3294.4,3.50095702]
[1736538109666,4.88,3294.8,3294.5,0.60430768]
[1736538109972,0.03640155,3294.5,3294.4,3.50095702]
[1736538110271,4.88,3294.8,3294.4,3.27442]
[1736538110573,0.03640155,3294.5,3294.4,3.27442]
[1736538110777,4.88,3294.8,3294.7,3.03517]
[1736538111783,4.88,3294.8,3294.7,3.26164703]
[1736538111983,4.88,3294.8,3294.7,3.67062173]
[1736538112494,0.784,3295.9,3295.2,3.03462]
[1736538112639,0.03725625,3295.8,3295.2,3.03462]
[1736538114000,0.03725625,3295.8,3295.0,3.03486]
[1736538114146,0.03725625,3295.8,3295.0,3.418926]
[1736538114343,0.784,3295.9,3295.0,0.384066]
[1736538114585,0.03718124,3295.7,3295.1,3.03476]
[1736538114743,0.03725625,3295.8,3295.1,3.03476]
[1736538114943,0.03710623,3295.6,3295.1,3.03476]
[1736538115143,0.03718124,3295.7,3295.1,3.03476]
[1736538115344,0.03703122,3295.5,3295.2,0.303476]
[1736538115705,0.0369562,3295.4,3295.2,0.303476]
[1736538115900,0.784,3295.9,3295.2,0.303476]
[1736538116195,0.03688118,3295.3,3295.1,3.03476]
[1736538116447,0.784,3295.9,3295.1,3.03476]
[1736538116584,0.03680616,3295.2,3295.1,3.03476]
[1736538116911,0.784,3295.9,3295.1,3.03476]
[1736538117293,0.03733411,3295.8,3295.1,3.03476]
[1736538118583,0.03733411,3295.8,3295.3,3.03462]
[1736538120067,0.03733411,3295.8,3295.2,0.239]
[1736538120694,0.03733411,3295.8,3295.2,0.8435066]
[1736538121275,0.03733411,3295.8,3295.2,0.239]
[1736538125011,0.769,3295.7,3295.2,0.239]
[1736538125332,0.03710521,3295.6,3295.2,0.239]
[1736538125630,5.684,3295.5,3295.2,0.239]
[1736538125844,0.0075,3295.2,3294.4,3.27436]
[1736538125976,0.804,3295.1,3294.4,3.27443]
[1736538126171,0.84087074,3295.1,3294.4,3.27443]
[1736538128036,0.84087074,3295.1,3294.4,0.67141985]
[1736538128337,0.84087074,3295.1,3294.7,3.03515]
[1736538130302,0.84087074,3295.1,3294.9,3.03498]
[1736538130498,4.88,3295.4,3294.6,0.78414985]
[1736538130709,0.03468534,3295.3,3294.6,0.78414985]
[1736538131057,0.03468534,3295.3,3294.8,3.03506]
[1736538131261,0.03468534,3295.3,3294.6,3.03519]
[1736538131544,0.8296,3295.2,3294.7,0.303519]
[1736538131840,0.03519717,3295.1,3294.7,3.03517]
[1736538132065,0.8296,3295.2,3294.7,3.03517]
[1736538132268,0.03514526,3295.1,3294.7,3.03517]
[1736538132806,0.8296,3295.2,3294.7,3.03517]
[1736538133005,0.03515192,3295.1,3294.7,3.03517]
[1736538133242,0.8296,3295.2,3294.7,3.338687]
[1736538133434,0.0350769,3295.0,3294.4,1.47461985]
[1736538133751,0.8296,3295.2,3294.4,1.50496919]
[1736538133963,0.8296,3295.2,3294.6,3.03526]
[1736538134283,4.88,3295.4,3295.2,3.0347]
[1736538134856,0.7868,3295.6,3295.0,3.03485]
[1736538135059,0.7868,3295.6,3294.7,0.239]
[1736538135362,1.11901907,3295.6,3294.7,0.83674863]
[1736538135512,0.7868,3295.6,3295.1,0.22705713]
[1736538136926,0.7868,3295.6,3295.0,3.03489]
[1736538137370,0.7868,3295.6,3294.7,0.83674863]
[1736538137516,0.7868,3295.6,3295.0,0.239]
[1736538137711,0.7515,3295.4,3295.0,0.239]
[1736538137975,0.03525374,3295.3,3295.0,0.239]
[1736538138185,0.7515,3295.2,3295.0,0.239]
[1736538138468,0.03515806,3295.1,3295.0,0.239]
[1736538139283,0.03515806,3295.1,3294.7,0.22711351]
[1736538140313,0.03515806,3295.1,3294.6,0.239]
[1736538140314,0.03515806,3295.1,3294.8,0.22711351]
[1736538141460,0.03515806,3295.1,3294.7,3.03517]
[1736538141641,0.03515806,3295.1,3294.7,3.362587]
[1736538142376,0.03515806,3295.1,3294.7,3.03517]
[1736538142671,0.03515806,3295.1,3294.6,0.239]
[1736538143023,0.7819,3295.0,3294.6,0.239]
[1736538143235,0.0344679,3294.9,3294.6,0.239]
[1736538144036,0.0344679,3294.9,3294.4,0.22733371]
[1736538144037,4.9144679,3294.9,3294.4,0.22733371]
[1736538144223,0.7819,3294.8,3294.4,0.22733371]
[1736538144434,0.03431781,3294.7,3294.4,0.22733371]
[1736538144778,0.7819,3294.8,3294.4,0.22733371]